[Event "Klubbmästerskap 2025 Tisdag"]
[Site "Linköping, Sweden"]
[Date "2025.01.21"]
[Round "2.7"]
[White "Tonkin, Archie"]
[Black "Gustavsson, Rolf"]
[Result "1-0"]
[TimeControl "90 min + 30 sec/move"]
[WhiteElo "1657"]
[BlackElo "1695"]

1. c4 {[%clk 01:30:43]} {[%emt 00:00:16]} g6 {[%clk 01:30:26]} {[%emt
00:00:34]} 2. Nc3 {[%clk 01:30:56]} {[%emt 00:00:17]} Bg7 {[%clk 01:30:46]}
{[%emt 00:00:11]} 3. d4 {[%emt 00:00:36]} c6 {[%clk 01:29:33]} {[%emt
00:01:25]} 4. Nf3 {[%emt 00:00:34]} d6 {[%clk 01:28:34]} {[%emt 00:01:10]} 5.
e3 {[%clk 01:30:47]} {[%emt 00:01:05]} Bg4 {[%clk 01:28:21]} {[%emt 00:00:42]}
6. Bd3 {[%clk 01:30:37]} {[%emt 00:01:18]} Nd7 {[%clk 01:27:27]} {[%emt
00:00:46]} 7. h3 {[%clk 01:30:31]} {[%emt 00:00:35]} Bxf3 {[%emt 00:00:17]} 8.
Qxf3 {[%emt 00:01:14]} e5 {[%clk 01:23:07]} {[%emt 00:03:21]} 9. d5 {[%clk
01:28:19]} {[%emt 00:02:42]} c5 {[%clk 01:17:16]} {[%emt 00:06:22]} 10. e4
{[%clk 01:24:50]} {[%emt 00:03:59]} a6 {[%clk 01:14:28]} {[%emt 00:03:19]} 11.
O-O {[%emt 00:02:58]} Bh6 {[%clk 01:11:58]} {[%emt 00:08:53]} 12. Qg3 {[%clk
01:23:37]} {[%emt 00:01:30]} Bxc1 {[%clk 01:11:22]} {[%emt 00:01:05]} 13. Raxc1
{[%clk 01:23:12]} {[%emt 00:00:56]} g5 {[%clk 01:06:48]} {[%emt 00:05:04]} 14.
Be2 {[%clk 01:21:25]} {[%emt 00:02:17]} h5 {[%clk 01:04:17]} {[%emt 00:03:01]}
15. f3 {[%clk 01:18:43]} {[%emt 00:03:12]} Qf6 {[%clk 01:02:32]} {[%emt
00:02:14]} 16. Rf2 {[%clk 01:17:21]} {[%emt 00:01:52]} O-O-O {[%clk 01:01:46]}
{[%emt 00:01:16]} 17. Nd1 {[%clk 01:15:25]} {[%emt 00:02:25]} Qh6 {[%clk
01:00:17]} {[%emt 00:02:00]} 18. Rc3 {[%clk 01:11:42]} {[%emt 00:04:12]} Ne7
{[%clk 00:58:41]} {[%emt 00:02:07]} 19. Ne3 {[%emt 00:00:38]} Rdf8 {[%clk
00:58:28]} {[%emt 00:00:38]} 20. Nf5 {[%clk 01:09:17]} {[%emt 00:02:51]} Nxf5
{[%clk 00:58:32]} {[%emt 00:00:26]} 21. exf5 {[%clk 01:09:37]} {[%emt
00:00:11]} Nf6 {[%clk 00:56:10]} {[%emt 00:02:52]} 22. Bd3 {[%clk 01:05:04]}
{[%emt 00:05:02]} g4 {[%clk 00:54:12]} {[%emt 00:02:31]} 23. h4 {[%clk
01:00:48]} {[%emt 00:04:43]} gxf3 {[%clk 00:53:20]} {[%emt 00:01:23]} 24. Qxf3
{[%clk 00:59:23]} {[%emt 00:01:54]} Rhg8 {[%clk 00:51:25]} {[%emt 00:02:25]} 25.
Be4 {[%clk 00:55:08]} {[%emt 00:04:45]} Nxe4 {[%clk 00:49:58]} {[%emt
00:01:56]} 26. Qxe4 {[%clk 00:55:06]} {[%emt 00:00:32]} Rg4 {[%clk 00:48:22]}
{[%emt 00:02:06]} 27. Qe2 {[%clk 00:51:02]} {[%emt 00:04:34]} Rxh4 {[%clk
00:42:10]} {[%emt 00:06:42]} 28. Rg3 {[%clk 00:48:13]} {[%emt 00:03:19]} Qh7
{[%clk 00:31:39]} {[%emt 00:11:01]} 29. b3 {[%emt 00:03:03]} Rg4 {[%clk
00:27:19]} {[%emt 00:04:47]} 30. Rh3 {[%clk 00:43:35]} {[%emt 00:02:38]} f6
{[%clk 00:26:36]} {[%emt 00:01:13]} 31. Qxg4 {[%emt 00:00:28]} 1-0

[Event "Klubbmästerskap 2025 Tisdag"]
[Site "Linköping, Sweden"]
[Date "2025.01.21"]
[Round "2.8"]
[White "Lantz, Lars-Göran"]
[Black "Svensson, Torgil"]
[Result "0-1"]
[TimeControl "90 min + 30 sec/move"]
[WhiteElo "1500"]
[BlackElo "1547"]

1. e4 {[%clk 01:30:50]} {[%emt 00:00:09]} c5 {[%clk 01:30:54]} {[%emt
00:00:07]} 2. Nf3 {[%clk 01:31:14]} {[%emt 00:00:06]} d6 {[%clk 01:31:15]}
{[%emt 00:00:10]} 3. Bc4 {[%clk 01:31:31]} {[%emt 00:00:13]} Nf6 {[%clk
01:31:21]} {[%emt 00:00:24]} 4. Ng5 {[%clk 01:31:21]} {[%emt 00:00:23]} e6
{[%clk 01:31:49]} 5. c3 {[%clk 01:29:57]} {[%emt 00:01:58]} h6 {[%clk
01:32:19]} 6. Nf3 {[%clk 01:27:36]} {[%emt 00:00:23]} Nxe4 {[%clk 01:32:45]}
{[%emt 00:02:47]} 7. O-O {[%clk 01:26:46]} {[%emt 00:00:49]} d5 {[%clk
01:33:12]} 8. Bb5+ {[%clk 01:25:41]} {[%emt 00:02:09]} Nc6 {[%clk 01:31:47]}
{[%emt 00:01:56]} 9. Qa4 {[%clk 01:26:01]} {[%emt 00:00:10]} Bd7 {[%clk
01:32:03]} {[%emt 00:00:14]} 10. d3 {[%clk 01:25:27]} {[%emt 00:01:05]} Nd6
{[%clk 01:29:57]} {[%emt 00:02:34]} 11. Bxc6 {[%clk 01:23:54]} {[%emt
00:02:03]} Bxc6 {[%clk 01:26:54]} {[%emt 00:03:34]} 12. Qd1 {[%clk 01:24:07]}
{[%emt 00:00:17]} Be7 {[%clk 01:26:23]} {[%emt 00:01:01]} 13. Be3 {[%clk
01:24:12]} {[%emt 00:02:31]} b6 {[%clk 01:25:13]} {[%emt 00:01:40]} 14. d4
{[%clk 01:19:19]} {[%emt 00:05:23]} Nf5 {[%clk 01:23:50]} {[%emt 00:01:53]} 15.
Nbd2 {[%clk 01:11:44]} {[%emt 00:08:05]} O-O {[%clk 01:23:43]} {[%emt
00:00:37]} 16. Ne5 {[%clk 01:10:03]} {[%emt 00:02:12]} Be8 {[%clk 01:20:41]}
{[%emt 00:03:32]} 17. Nef3 {[%clk 01:05:24]} {[%emt 00:05:10]} Bd6 {[%clk
01:18:05]} {[%emt 00:03:05]} 18. dxc5 {[%clk 00:56:06]} {[%emt 00:09:48]} bxc5
{[%clk 01:17:23]} {[%emt 00:01:11]} 19. Nb3 {[%clk 00:55:43]} {[%emt 00:00:54]}
Qc7 {[%clk 01:16:50]} {[%emt 00:01:02]} 20. g3 {[%clk 00:54:11]} {[%emt
00:02:03]} Nxe3 {[%clk 01:15:59]} {[%emt 00:01:20]} 21. fxe3 {[%clk 00:54:19]}
{[%emt 00:00:23]} Rb8 {[%clk 01:15:22]} {[%emt 00:01:07]} 22. Nfd2 {[%clk
00:49:46]} {[%emt 00:05:02]} c4 {[%clk 01:14:45]} {[%emt 00:01:08]} 23. Nd4
{[%clk 00:47:55]} {[%emt 00:02:21]} Rxb2 {[%clk 01:14:58]} {[%emt 00:00:17]} 24.
a4 {[%clk 00:47:13]} {[%emt 00:01:12]} a6 {[%clk 01:14:41]} {[%emt 00:00:47]}
25. Nc2 {[%clk 00:45:32]} {[%emt 00:02:11]} Bd7 {[%clk 01:13:42]} {[%emt
00:01:28]} 26. Kg2 {[%clk 00:45:42]} {[%emt 00:00:21]} e5 {[%clk 01:13:26]}
{[%emt 00:00:45]} 27. Nb4 {[%clk 00:42:54]} {[%emt 00:03:19]} Bxb4 {[%clk
01:13:30]} {[%emt 00:00:25]} 28. cxb4 {[%clk 00:42:58]} {[%emt 00:00:26]} Rxb4
{[%clk 01:13:46]} {[%emt 00:00:14]} 29. Nb1 {[%clk 00:40:12]} {[%emt 00:03:16]}
Qc6 {[%clk 01:11:53]} {[%emt 00:02:23]} 30. Nc3 {[%clk 00:37:32]} {[%emt
00:03:11]} d4+ {[%clk 01:12:07]} {[%emt 00:00:16]} 0-1

[Event "Klubbmästerskap 2025 Tisdag"]
[Site "Linköping, Sweden"]
[Date "2025.01.21"]
[Round "2.10"]
[White "Gällman, Joel"]
[Black "Karlsson, Andreas 1984"]
[Result "1-0"]
[TimeControl "90 min + 30 sec/move"]
[WhiteElo "1461"]
[BlackElo "1565"]

1. e4 {[%clk 01:30:57]} {[%emt 00:00:03]} c6 {[%clk 01:30:30]} {[%emt
00:00:30]} 2. d4 {[%clk 01:31:05]} {[%emt 00:00:22]} d5 {[%clk 01:30:36]}
{[%emt 00:00:24]} 3. e5 {[%clk 01:31:04]} {[%emt 00:00:31]} c5 {[%clk
01:30:25]} {[%emt 00:00:41]} 4. Nf3 {[%clk 01:30:38]} {[%emt 00:00:56]} Bg4
{[%clk 01:29:19]} {[%emt 00:01:35]} 5. Bb5+ {[%clk 01:29:22]} {[%emt 00:01:46]}
Nc6 {[%clk 01:29:25]} {[%emt 00:00:24]} 6. Bxc6+ {[%clk 01:28:49]} {[%emt
00:01:03]} bxc6 {[%clk 01:29:33]} {[%emt 00:00:22]} 7. Be3 {[%clk 01:28:34]}
{[%emt 00:00:46]} cxd4 {[%clk 01:25:21]} {[%emt 00:04:42]} 8. Bxd4 {[%clk
01:28:44]} {[%emt 00:00:20]} e6 {[%clk 01:25:13]} {[%emt 00:00:38]} 9. O-O
{[%clk 01:26:12]} {[%emt 00:03:01]} Qc7 {[%clk 01:22:58]} {[%emt 00:02:44]} 10.
h3 {[%clk 01:25:03]} {[%emt 00:01:39]} Bxf3 {[%clk 01:22:50]} {[%emt 00:00:39]}
11. Qxf3 {[%clk 01:25:19]} {[%emt 00:00:14]} c5 {[%clk 01:22:50]} {[%emt
00:00:31]} 12. Bc3 {[%clk 01:25:22]} {[%emt 00:00:27]} Rb8 {[%clk 01:22:24]}
{[%emt 00:00:56]} 13. Re1 {[%clk 01:23:31]} {[%emt 00:02:21]} d4 {[%clk
01:22:11]} {[%emt 00:00:43]} 14. Bd2 {[%clk 01:23:46]} {[%emt 00:00:16]} Rxb2
{[%clk 01:22:09]} {[%emt 00:00:33]} 15. Qd3 {[%clk 01:23:35]} {[%emt 00:00:40]}
Ne7 {[%clk 01:21:25]} {[%emt 00:01:14]} 16. Qa3 {[%clk 01:21:25]} {[%emt
00:02:41]} Rb7 {[%clk 01:19:51]} {[%emt 00:02:04]} 17. Ba5 {[%clk 01:16:25]}
{[%emt 00:05:30]} Qc8 {[%clk 01:13:16]} {[%emt 00:07:04]} 18. Nd2 {[%clk
01:13:43]} {[%emt 00:03:13]} Nc6 {[%clk 01:12:40]} {[%emt 00:01:06]} 19. Nc4
{[%clk 01:13:07]} {[%emt 00:01:06]} Be7 {[%clk 01:10:24]} {[%emt 00:02:46]} 20.
Rab1 {[%clk 01:12:33]} {[%emt 00:01:05]} Rxb1 {[%clk 01:09:38]} {[%emt
00:01:15]} 21. Rxb1 {[%clk 01:12:54]} {[%emt 00:00:08]} O-O {[%emt 00:08:45]}
22. f4 {[%clk 01:05:15]} Qa6 {[%clk 01:05:16]} {[%emt 00:04:47]} 23. Qa4 {[%clk
01:05:02]} {[%emt 00:00:43]} Nb4 {[%clk 01:03:13]} {[%emt 00:02:33]} 24. a3
{[%clk 01:03:03]} {[%emt 00:02:29]} Nd5 {[%clk 01:02:48]} {[%emt 00:00:54]} 25.
Rf1 {[%clk 01:00:56]} {[%emt 00:02:36]} Nc3 {[%clk 01:01:22]} {[%emt 00:01:58]}
26. Qb3 {[%clk 01:01:03]} {[%emt 00:00:23]} f6 {[%clk 00:59:19]} {[%emt
00:02:32]} 27. Bxc3 {[%clk 01:00:02]} {[%emt 00:01:30]} dxc3 {[%clk 00:59:33]}
{[%emt 00:00:17]} 28. Qxc3 {[%clk 01:00:14]} {[%emt 00:00:18]} fxe5 {[%clk
00:59:34]} {[%emt 00:00:30]} 29. fxe5 {[%clk 01:00:27]} {[%emt 00:00:16]} Rd8
{[%clk 00:58:57]} {[%emt 00:01:07]} 30. Rf4 {[%clk 01:00:15]} {[%emt 00:00:42]}
Rd1+ {[%clk 00:57:33]} {[%emt 00:01:54]} 31. Rf1 {[%clk 01:00:27]} {[%emt
00:00:18]} Rd4 {[%clk 00:57:40]} {[%emt 00:00:23]} 32. Qf3 {[%clk 01:00:01]}
{[%emt 00:00:57]} Qc8 {[%clk 00:49:42]} {[%emt 00:08:27]} 33. Qf7+ {[%clk
00:59:47]} {[%emt 00:00:44]} Kh8 {[%clk 00:49:57]} {[%emt 00:00:15]} 34. Qxe7
{[%clk 01:00:00]} {[%emt 00:00:17]} Rd8 {[%clk 00:49:49]} {[%emt 00:00:38]} 35.
Nd6 {[%clk 01:00:12]} {[%emt 00:00:18]} 1-0

[Event "Klubbmästerskap 2025 Tisdag"]
[Site "Linköping, Sweden"]
[Date "2025.01.21"]
[Round "2.12"]
[White "Jakobsson, Leif"]
[Black "Andersson, Fredrik 1969"]
[Result "1/2-1/2"]
[TimeControl "90 min + 30 sec/move"]
[WhiteElo "1714"]
[BlackElo "1746"]

1. e4 {[%clk 01:30:40]} {[%emt 00:00:19]} c5 {[%clk 01:30:53]} {[%emt
00:00:08]} 2. Nc3 {[%clk 01:30:59]} {[%emt 00:00:11]} Nc6 {[%clk 01:31:16]}
{[%emt 00:00:07]} 3. Bc4 {[%clk 01:31:05]} {[%emt 00:00:24]} e6 {[%clk
01:24:48]} {[%emt 00:06:58]} 4. d3 {[%clk 01:29:11]} {[%emt 00:02:24]} g6
{[%clk 01:17:18]} {[%emt 00:08:01]} 5. Bf4 {[%clk 01:27:21]} {[%emt 00:02:19]}
e5 {[%clk 01:16:55]} {[%emt 00:00:54]} 6. Bg3 {[%clk 01:20:57]} {[%emt
00:06:54]} Bg7 {[%clk 01:05:33]} {[%emt 00:11:53]} 7. Nge2 {[%clk 01:14:46]}
{[%emt 00:06:40]} Nge7 {[%clk 01:04:12]} {[%emt 00:01:51]} 8. O-O {[%clk
01:13:44]} {[%emt 00:01:32]} O-O {[%clk 01:04:12]} {[%emt 00:00:31]} 9. f4
{[%clk 01:12:20]} {[%emt 00:01:54]} d6 {[%clk 00:57:21]} {[%emt 00:07:21]} 10.
fxe5 {[%clk 01:06:17]} {[%emt 00:06:32]} Nxe5 {[%clk 00:54:23]} {[%emt
00:03:28]} 11. Bd5 {[%clk 01:01:32]} {[%emt 00:05:16]} Nxd5 {[%clk 00:50:35]}
{[%emt 00:04:19]} 12. Nxd5 {[%clk 01:01:24]} {[%emt 00:00:38]} f5 {[%clk
00:42:37]} {[%emt 00:08:27]} 13. Bxe5 {[%clk 00:48:08]} {[%emt 00:13:46]} Bxe5
{[%clk 00:42:14]} {[%emt 00:00:53]} 14. c3 {[%clk 00:47:31]} {[%emt 00:01:07]}
Qh4 {[%clk 00:35:02]} {[%emt 00:07:42]} 15. g3 {[%clk 00:39:50]} {[%emt
00:08:10]} Qg5 {[%clk 00:34:33]} {[%emt 00:01:00]} 16. d4 {[%clk 00:38:25]}
{[%emt 00:01:56]} Bg7 {[%clk 00:29:32]} {[%emt 00:05:31]} 17. h4 {[%clk
00:32:04]} {[%emt 00:06:51]} Qd8 {[%clk 00:27:28]} {[%emt 00:02:34]} 18. exf5
{[%clk 00:25:10]} {[%emt 00:07:23]} Bxf5 {[%clk 00:27:08]} {[%emt 00:00:50]} 19.
Nef4 {[%clk 00:24:41]} {[%emt 00:00:59]} g5 {[%clk 00:22:37]} {[%emt 00:05:02]}
20. Nh5 {[%clk 00:18:56]} {[%emt 00:06:14]} gxh4 {[%clk 00:16:33]} {[%emt
00:06:34]} 21. Qb3 {[%clk 00:15:52]} {[%emt 00:03:34]} Qg5 {[%clk 00:09:51]}
{[%emt 00:07:12]} 22. Ne7+ {[%clk 00:06:12]} {[%emt 00:10:10]} Kh8 {[%clk
00:10:09]} {[%emt 00:00:12]} 23. Nxf5 {[%clk 00:04:26]} {[%emt 00:02:15]} Qxh5
{[%clk 00:07:47]} {[%emt 00:02:52]} 24. Nxg7 {[%clk 00:04:06]} {[%emt
00:00:51]} Kxg7 {[%clk 00:07:42]} {[%emt 00:00:35]} 25. Qxb7+ {[%clk 00:04:15]}
{[%emt 00:00:21]} Kh8 {[%clk 00:08:04]} {[%emt 00:00:09]} 26. Rxf8+ {[%clk
00:02:15]} {[%emt 00:02:30]} Rxf8 {[%clk 00:08:32]} {[%emt 00:00:02]} 27. Qg2
{[%clk 00:01:52]} {[%emt 00:00:52]} hxg3 {[%clk 00:07:27]} {[%emt 00:01:35]} 28.
dxc5 {[%clk 00:02:04]} {[%emt 00:00:19]} Qxc5+ {[%clk 00:07:26]} {[%emt
00:00:30]} 29. Kh1 {[%clk 00:02:21]} {[%emt 00:00:12]} Qh5+ {[%clk 00:07:54]}
{[%emt 00:00:02]} 30. Kg1 {[%clk 00:02:37]} {[%emt 00:00:13]} Qh2+ {[%clk
00:03:48]} {[%emt 00:04:37]} 31. Qxh2 {[%clk 00:02:43]} {[%emt 00:00:24]} gxh2+
{[%clk 00:04:16]} {[%emt 00:00:03]} 32. Kxh2 {[%clk 00:02:57]} {[%emt
00:00:15]} Rf2+ {[%clk 00:04:44]} {[%emt 00:00:02]} 33. Kg3 {[%clk 00:03:09]}
{[%emt 00:00:17]} Rxb2 {[%clk 00:05:10]} {[%emt 00:00:05]} 34. Rd1 {[%clk
00:03:01]} {[%emt 00:00:38]} Rc2 {[%clk 00:02:09]} {[%emt 00:03:31]} 35. Rxd6
{[%clk 00:02:47]} {[%emt 00:00:43]} Rxc3+ {[%clk 00:02:34]} {[%emt 00:00:04]}
36. Kf4 {[%clk 00:02:57]} {[%emt 00:00:20]} Ra3 {[%clk 00:02:57]} {[%emt
00:00:08]} 37. Rd2 {[%clk 00:02:54]} {[%emt 00:00:33]} Kg7 {[%clk 00:03:14]}
{[%emt 00:00:14]} 38. Kg5 {[%clk 00:02:56]} {[%emt 00:00:26]} Ra5+ {[%clk
00:03:00]} {[%emt 00:00:45]} 39. Kg4 {[%clk 00:03:02]} {[%emt 00:00:22]} h5+
{[%clk 00:02:37]} {[%emt 00:00:55]} 40. Kh4 {[%clk 00:03:15]} {[%emt 00:00:17]}
Kg6 {[%clk 00:02:28]} {[%emt 00:00:40]} 41. Rg2+ {[%clk 00:03:00]} {[%emt
00:00:44]} Kh6 {[%clk 00:02:27]} {[%emt 00:00:31]} 42. Rd2 {[%clk 00:03:12]}
{[%emt 00:00:16]} Ra4+ {[%clk 00:02:39]} {[%emt 00:00:21]} 43. Kh3 {[%clk
00:03:28]} {[%emt 00:00:12]} Kg5 {[%clk 00:02:36]} {[%emt 00:00:34]} 44. Rd5+
{[%clk 00:03:39]} {[%emt 00:00:19]} Kf4 {[%clk 00:01:32]} {[%emt 00:01:35]} 45.
Rxh5 {[%clk 00:03:46]} {[%emt 00:00:23]} Ra3+ {[%clk 00:01:54]} {[%emt
00:00:08]} 46. Kg2 {[%clk 00:03:27]} {[%emt 00:00:48]} Rxa2+ {[%clk 00:02:15]}
{[%emt 00:00:10]} 47. Kf1 {[%clk 00:03:21]} {[%emt 00:00:35]} a5 {[%clk
00:01:44]} {[%emt 00:01:02]} 48. Rh4+ {[%clk 00:03:20]} {[%emt 00:00:28]} Kg3
{[%clk 00:01:27]} {[%emt 00:00:51]} 49. Rc4 {[%clk 00:03:32]} {[%emt 00:00:17]}
a4 {[%clk 00:01:42]} {[%emt 00:00:16]} 50. Ke1 {[%clk 00:03:32]} {[%emt
00:00:29]} Kf3 {[%clk 00:00:39]} {[%emt 00:01:33]} 1/2-1/2